bitfinex/quotes_ETHUSD_20250414
["timestamp","ask_amount","ask_price","bid_price","bid_amount"]
[1744654715476,6.09209,1641.5,1641.2,12.62189]
[1744654715775,12.18426,1641.5,1641.2,6.5288]
[1744654715995,6.09248,1641.4,1641.2,6.5288]
[1744654716745,6.09248,1641.4,1640.8,0.7702]
[1744654716746,1.440248,1641.4,1640.8,0.7702]
[1744654716947,6.09395,1641.0,1640.6,12.62936]
[1744654717269,6.09395,1641.0,1640.6,18.72456]
[1744654717469,12.18797,1641.0,1640.6,18.72456]
[1744654717657,6.0944,1640.9,1640.6,6.5342]
[1744654717859,12.18798,1641.0,1640.6,12.62932]
[1744654718052,6.09447,1640.9,1640.6,6.5342]
[1744654718250,6.09447,1640.9,1640.6,12.62949]
[1744654718448,13.535758,1641.0,1640.6,5.764]
[1744654718645,6.09421,1640.9,1640.6,5.764]
[1744654718861,8.0572108,1640.9,1640.6,5.764]
[1744654719380,6.09495,1640.7,1640.6,5.764]
[1744654720650,0.6768,1640.2,1639.7,0.3983161]
[1744654720886,6.7751,1639.8,1639.7,0.3983161]
[1744654721803,7.79117484,1639.8,1639.7,0.3983161]
[1744654721967,7.24117484,1639.8,1639.7,0.3983161]
[1744654722164,8.10904648,1639.8,1639.7,0.3983161]
[1744654723502,11.60824767,1639.8,1639.7,0.3983161]
[1744654723657,12.15824767,1639.8,1639.7,0.3983161]
[1744654724292,15.15824767,1639.8,1639.7,6.1e-06]
[1744654725789,20.92324767,1639.8,1639.7,6.1e-06]
[1744654727859,12.10575207,1639.8,1639.7,6.1e-06]
[1744654729177,12.10575207,1639.8,1639.0,0.55]
[1744654729178,0.6768,1639.4,1638.5,0.7529]
[1744654729360,6.10095,1639.1,1638.6,6.10277]
[1744654729562,6.10095,1639.1,1638.7,6.10227]
[1744654729768,6.10137,1639.0,1638.6,6.10263]
[1744654729971,6.10137,1639.0,1638.7,5.767]
[1744654730171,9.10067,1639.2,1638.7,5.767]
[1744654730372,6.10128,1639.0,1638.7,5.767]
[1744654730590,6.10179,1638.9,1638.7,5.767]
[1744654730785,6.10179,1638.9,1638.6,6.10264]
[1744654730986,6.10179,1638.9,1638.7,5.767]
[1744654731273,13.112107,1639.1,1638.7,11.86934]
[1744654731474,6.10129,1639.0,1638.7,5.767]
[1744654732210,6.10129,1639.0,1638.7,11.86928]
[1744654732510,12.20212,1639.1,1638.7,13.666481]
[1744654732678,6.55707629,1639.3,1638.8,6.10185]
[1744654733008,6.10077,1639.2,1638.9,6.91512]
[1744654733180,6.10022,1639.3,1638.9,6.91502]
[1744654733375,6.10019,1639.3,1639.0,6.10125]
[1744654733576,9.09981,1639.4,1638.9,0.8135]
[1744654733776,6.1003,1639.3,1638.9,6.91499]
[1744654733975,10.009791,1639.4,1639.0,6.10099]
[1744654734203,10.009791,1639.4,1639.0,12.20213]
[1744654734405,12.23944,1639.5,1639.1,17.96953]
[1744654734576,12.23944,1639.5,1639.1,11.86873]
[1744654734781,6.09944,1639.5,1639.1,17.96947]
[1744654734991,6.09944,1639.5,1639.2,6.10053]
[1744654735173,6.09946,1639.5,1639.2,6.10053]
[1744654735379,1.21057521,1639.7,1639.3,0.7926]
[1744654735578,1.21057521,1639.7,1639.5,6.09936]
[1744654735789,6.09837,1639.8,1639.5,6.09936]
[1744654735988,0.7598,1640.1,1639.5,5.768]
[1744654736199,6.09756,1640.0,1639.5,11.86731]
[1744654736516,12.19637,1639.9,1639.5,11.86727]
[1744654736809,6.09831,1639.8,1639.5,11.86727]
[1744654736980,6.09812,1639.9,1639.5,11.86727]
[1744654737176,7.393058,1640.0,1639.5,11.86738]
[1744654737495,12.1963,1639.9,1639.5,11.86738]
[1744654737696,6.09804,1639.9,1639.6,6.09901]
[1744654737883,6.09804,1639.9,1639.5,11.86727]
[1744654738279,6.09847,1639.8,1639.5,5.768]
[1744654739209,12.19617,1639.9,1639.5,11.86741]
[1744654739402,6.09901,1639.7,1639.5,5.768]
[1744654740189,1.3491628,1639.9,1639.6,6.09887]
[1744654740395,6.09819,1639.9,1639.5,11.86709]
[1744654740590,12.19635,1639.9,1639.5,11.86709]
[1744654740800,1.295458,1640.0,1639.5,5.768]
[1744654741033,6.09855,1639.8,1639.5,5.768]
[1744654741217,6.09867,1639.7,1639.5,5.768]
[1744654741377,6.09855,1639.8,1639.5,5.768]
[1744654741783,6.09807,1639.9,1639.5,5.768]
[1744654741996,7.393058,1640.0,1639.6,6.9185]
[1744654742203,1.295458,1640.0,1639.7,6.09867]
[1744654742484,6.14,1640.1,1639.8,6.09799]
[1744654742807,6.097,1640.2,1639.8,6.09799]
[1744654743012,6.09696,1640.2,1639.8,17.96415]
[1744654743320,9.09663,1640.3,1640.0,0.75]
[1744654743790,6.14,1640.4,1640.0,0.75]
[1744654744111,12.23535,1640.6,1640.2,6.09677]
[1744654744318,6.09586,1640.5,1640.2,5.768]
[1744654744518,1.21812085,1640.6,1640.2,5.768]
[1744654744713,4.27061645,1640.6,1640.2,5.768]
[1744654744927,6.09644,1640.3,1640.2,5.768]
[1744654745890,7.40887,1640.4,1639.8,6.86785]
[1744654746096,12.19421,1640.2,1639.9,5.767]
[1744654746323,6.0965,1640.3,1639.9,5.767]
[1744654746526,6.9163,1640.6,1640.2,0.829]
[1744654746713,3.99163,1640.6,1640.2,0.829]
[1744654746913,6.09589,1640.5,1640.2,0.829]
[1744654747112,6.09644,1640.3,1640.2,0.829]
[1744654747827,6.09644,1640.3,1640.0,0.8311]
[1744654748027,6.09644,1640.3,1640.0,6.5981]
[1744654748631,6.09644,1640.3,1640.0,12.69561]
[1744654748927,6.09615,1640.4,1640.0,18.79305]
[1744654749094,6.09577,1640.5,1640.1,6.09702]
[1744654749299,6.9163,1640.8,1640.2,6.09675]
[1744654749630,6.09556,1640.6,1640.2,6.09675]
[1744654750125,6.09581,1640.5,1640.2,6.09675]
[1744654751930,12.19122,1640.6,1640.3,0.8154]
[1744654752118,12.800776,1640.6,1640.3,0.8154]
[1744654753133,6.09511,1640.7,1640.3,13.00812]
[1744654753303,12.19026,1640.7,1640.3,6.91174]
[1744654753499,6.09469,1640.8,1640.4,11.96895]
[1744654753811,12.19033,1640.7,1640.4,5.873]
[1744654755032,6.0957,1640.5,1640.4,5.873]
[1744654755228,6.0954,1640.6,1640.4,5.873]
[1744654755417,7.314444,1640.6,1640.4,5.873]
[1744654755724,13.409904,1640.6,1640.4,5.873]
[1744654755931,7.314444,1640.6,1640.4,5.873]
[1744654756428,6.0957,1640.5,1640.4,5.873]
[1744654756613,13.409944,1640.6,1640.4,5.873]
[1744654757330,1.219044,1640.6,1640.4,5.873]
[1744654757546,6.09502,1640.7,1640.4,5.873]
[1744654757750,12.19014,1640.7,1640.4,11.96906]
[1744654757931,3.45840492,1640.9,1640.4,11.96895]
[1744654758249,12.19028,1640.7,1640.4,5.873]
[1744654758403,6.09544,1640.6,1640.4,5.873]
[1744654758597,6.09503,1640.7,1640.4,5.873]
[1744654758598,12.19017,1640.7,1640.4,5.873]
[1744654758830,6.09485,1640.8,1640.4,11.96895]
[1744654758997,6.09421,1640.9,1640.4,5.873]
[1744654759205,6.09524,1640.7,1640.4,5.873]
[1744654759634,12.798901,1640.8,1640.4,11.96903]
[1744654759842,6.704111,1640.8,1640.4,18.06506]
[1744654760058,12.798931,1640.8,1640.4,18.06506]
[1744654760347,6.09546,1640.6,1640.4,5.873]
[1744654760719,6.095,1640.7,1640.4,5.873]
[1744654760941,6.095,1640.7,1640.4,11.96907]
[1744654761143,6.704081,1640.8,1640.4,11.96895]
[1744654761353,6.704081,1640.8,1640.1,0.8254]
[1744654761354,6.09621,1640.4,1640.1,0.8254]
[1744654761646,12.19181,1640.5,1640.1,6.92227]
[1744654761837,6.09581,1640.5,1640.1,6.92258]
[1744654762034,6.09544,1640.6,1640.2,6.09649]
[1744654762343,6.85454821,1640.6,1640.2,12.19319]
[1744654762542,12.19027,1640.7,1640.4,0.7706]
[1744654762848,12.19082,1640.6,1640.4,0.7706]
[1744654763615,6.0957,1640.5,1640.4,0.7706]
[1744654765527,6.09534,1640.6,1640.4,0.7706]
[1744654765849,12.800564,1640.6,1640.4,0.7706]
[1744654766446,6.0957,1640.5,1640.4,0.7706]
[1744654766750,6.704874,1640.6,1640.4,0.7706]
[1744654766927,6.09534,1640.6,1640.4,0.7706]
[1744654767122,6.0957,1640.5,1640.4,0.7706]
[1744654767326,6.09656,1640.3,1640.1,0.7519]
[1744654767654,12.19465,1640.1,1639.9,0.7519]
[1744654767859,6.09729,1640.1,1640.0,4.0]
[1744654768147,6.09692,1640.2,1640.0,4.0]
[1744654768345,6.706872,1640.1,1640.0,4.0]
[1744654768646,6.09756,1640.0,1639.9,0.7519]
[1744654768845,6.09795,1639.9,1639.7,54.1852]
[1744654769028,6.09795,1639.9,1639.8,4.0]
[1744654769427,12.19604,1639.9,1639.7,53.418]
[1744654769637,1.298824,1639.9,1639.3,6.09995]
[1744654769839,6.09881,1639.7,1639.4,11.97277]
[1744654770030,6.09908,1639.6,1639.5,4.0]
[1744654770224,12.19768,1639.7,1639.5,4.0]
[1744654770450,6.09884,1639.7,1639.5,4.0]
[1744654770822,6.09904,1639.6,1639.5,4.0]
[1744654771018,7.318828,1639.6,1639.5,4.0]
[1744654771538,7.319018,1639.6,1639.1,5.873]
[1744654771746,7.319018,1639.6,1639.2,4.0]
[1744654771747,12.20084,1639.3,1639.2,4.0]
[1744654772253,13.01434,1639.3,1639.2,4.0]
[1744654772420,6.10053,1639.2,1639.1,5.873]
[1744654772736,6.10053,1639.2,1639.1,9.873]
[1744654773348,6.10053,1639.2,1639.1,5.873]
[1744654773725,6.91383,1639.3,1639.1,5.873]
[1744654774353,6.10053,1639.2,1639.1,5.873]
[1744654774653,7.401966,1639.2,1638.8,6.6345]
[1744654774858,6.10161,1639.0,1638.8,0.7615]
[1744654775249,6.10165,1638.9,1638.8,0.7615]
[1744654775781,7.441436,1639.2,1638.9,6.10161]
[1744654775968,6.14,1639.2,1639.1,0.8328]
[1744654776269,12.24053,1639.2,1638.9,4.8308]
[1744654776625,6.10103,1639.1,1638.9,4.8308]
[1744654777046,6.10103,1639.1,1639.0,4.0]
[1744654777460,12.24053,1639.2,1639.0,4.0]
[1744654777768,7.324953,1639.1,1639.0,4.0]
[1744654778065,6.10178,1638.9,1638.7,6.6341]
[1744654778597,18.34134,1639.2,1638.8,6.10174]
[1744654778752,6.14,1639.2,1638.7,5.874]
[1744654778932,6.14,1639.2,1639.1,6.1009]
[1744654779264,6.09954,1639.5,1639.2,0.8117]
[1744654779445,7.359788,1639.6,1639.2,0.8117]
[1744654779446,12.19998,1639.4,1639.2,0.8117]
[1744654779861,6.09994,1639.4,1639.2,0.8117]
[1744654780365,6.09948,1639.5,1639.2,6.91214]
[1744654780563,18.33839,1639.6,1639.2,6.91214]
[1744654780778,18.33839,1639.6,1638.3,0.29866214]
[1744654780779,6.1033,1638.5,1638.3,0.29866214]
[1744654780942,6.1033,1638.5,1638.1,0.4483161]
[1744654780943,3.05950943,1638.9,1638.1,6.5529161]
[1744654781132,6.10253,1638.7,1638.2,0.7986]
[1744654781465,0.7695,1638.9,1638.4,6.10333]
[1744654781668,9.71040943,1639.1,1638.8,6.10181]
[1744654781669,0.8271,1639.1,1638.8,6.10181]
[1744654781834,6.10128,1639.0,1638.6,0.7746]
[1744654782165,6.10173,1638.9,1638.6,0.7746]
[1744654782390,6.10204,1638.8,1638.6,6.5736]
[1744654782591,12.20424,1638.8,1638.6,0.7746]
[1744654782793,6.10204,1638.8,1638.6,6.5736]
[1744654783089,6.10239,1638.7,1638.6,6.5736]
[1744654783292,6.10204,1638.8,1638.6,6.5736]
[1744654783293,6.10204,1638.8,1638.6,5.799]
[1744654783455,12.2043,1638.8,1638.6,5.799]
[1744654784167,6.10239,1638.7,1638.6,5.799]
[1744654784372,12.20442,1638.8,1638.6,5.799]
[1744654784568,6.10204,1638.8,1638.6,5.799]
[1744654784892,6.10239,1638.7,1638.6,5.799]
[1744654786198,6.10314,1638.5,1638.4,0.754]
[1744654786504,6.10351,1638.4,1638.3,5.8]
[1744654786663,6.10351,1638.4,1638.3,9.8]
[1744654786864,6.10314,1638.5,1638.3,9.8]
[1744654787394,6.10314,1638.5,1638.3,5.8]
[1744654787592,12.20662,1638.5,1638.3,5.8]
[1744654787798,12.20663,1638.5,1638.3,5.8]
[1744654787964,12.20658,1638.5,1638.3,5.8]
[1744654788159,6.90297,1638.7,1638.3,11.90353]
[1744654788393,6.10305,1638.6,1638.3,5.8]
[1744654788581,6.10305,1638.6,1638.3,11.90386]
[1744654788783,0.7513174,1638.7,1638.3,11.90386]
[1744654788983,13.04216,1638.9,1638.3,11.90386]
[1744654789188,6.10296,1638.6,1638.3,11.90386]
[1744654789485,6.10243,1638.7,1638.3,5.8]
[1744654789797,6.10202,1638.8,1638.4,6.1033]
[1744654789963,12.20438,1638.8,1638.4,6.1033]
[1744654790166,6.10295,1638.6,1638.3,11.90378]
[1744654790395,12.20512,1638.7,1638.3,11.90374]
[1744654790573,1.914488,1638.8,1638.3,11.90374]
[1744654790574,6.10206,1638.8,1638.5,6.10313]
[1744654790774,6.10272,1638.7,1638.5,0.7908]
[1744654790979,6.10277,1638.6,1638.5,0.7908]
[1744654791171,6.10277,1638.6,1638.3,6.5908]
[1744654791494,6.10243,1638.7,1638.3,6.5908]
[1744654791701,6.10279,1638.6,1638.3,12.69454]
[1744654791895,6.10279,1638.6,1638.3,18.79829]
[1744654792197,12.2051,1638.7,1638.3,12.69454]
[1744654792501,12.20505,1638.7,1638.3,12.69454]
[1744654792701,12.20505,1638.7,1638.3,18.7983]
[1744654793001,6.10277,1638.6,1638.3,18.7983]
[1744654793402,6.10277,1638.6,1638.3,12.69454]
[1744654793627,6.14,1638.9,1638.3,6.5908]
[1744654793798,7.054,1638.9,1638.4,6.1034]
[1744654794097,6.14,1639.2,1639.0,6.10109]
[1744654794265,0.7963,1639.4,1639.1,6.1009]
[1744654794467,12.20059,1639.3,1639.0,6.85375]
[1744654794686,0.7963,1639.4,1639.0,0.7526]
[1744654794907,6.14,1639.5,1639.3,6.10006]
[1744654795093,12.23975,1639.5,1639.1,6.10065]
[1744654795306,6.10016,1639.3,1639.0,7.50915]
[1744654795487,6.09986,1639.4,1639.1,6.10087]
[1744654795669,6.09986,1639.4,1639.1,6.10076]
[1744654796295,12.23944,1639.5,1639.1,6.10076]
[1744654796502,12.23944,1639.5,1639.2,6.10044]
[1744654796702,6.14,1639.5,1639.3,6.10008]
[1744654797003,6.14,1639.5,1639.4,6.09979]
[1744654797204,6.09904,1639.6,1639.3,5.801]
[1744654797374,6.09945,1639.5,1639.3,5.801]
[1744654797771,6.09904,1639.6,1639.3,11.90114]
[1744654798086,6.09904,1639.6,1639.3,11.90109]
[1744654798473,12.23873,1639.7,1639.4,6.09967]
[1744654798675,1.302083,1639.7,1639.4,12.19935]
[1744654798977,13.02056,1639.8,1639.4,12.95305]
[1744654799177,19.11905,1639.8,1639.4,12.95305]
[1744654799607,6.09872,1639.7,1639.4,6.85337]
[1744654799807,12.19758,1639.7,1639.4,6.85335]
[1744654800111,6.09872,1639.7,1639.4,6.85335]
[1744654800314,6.88043,1639.8,1639.4,6.85335]
[1744654800476,6.09869,1639.7,1639.4,12.95303]
[1744654800677,12.19754,1639.7,1639.4,0.7537]
[1744654800999,6.09869,1639.7,1639.4,0.7537]
[1744654801243,6.09942,1639.5,1639.3,5.801]
[1744654801430,6.09979,1639.4,1639.3,5.801]
[1744654801755,6.09956,1639.5,1639.3,5.801]
[1744654801961,6.09956,1639.5,1639.3,9.801]
[1744654802125,6.09909,1639.6,1639.3,9.801]
[1744654802308,6.09955,1639.5,1639.3,9.801]
[1744654802943,6.09955,1639.5,1639.3,5.801]
[1744654803638,13.418067,1639.6,1639.3,5.801]
[1744654803822,7.318857,1639.6,1639.3,11.90113]
[1744654804021,7.318857,1639.6,1639.3,5.801]
[1744654804022,13.418137,1639.6,1639.3,5.801]
[1744654804222,7.318857,1639.6,1639.3,5.801]
[1744654804554,6.8313757,1639.5,1639.3,5.801]
[1744654804759,6.09969,1639.5,1639.3,5.801]
[1744654805164,12.19942,1639.5,1639.3,5.801]
[1744654805549,12.19947,1639.5,1639.3,5.801]
[1744654805745,6.09979,1639.4,1639.3,5.801]
[1744654805949,6.09912,1639.6,1639.3,5.801]
[1744654806186,0.609912,1639.6,1639.3,18.00107]
[1744654806468,0.609912,1639.6,1639.4,6.09977]
[1744654806822,0.609912,1639.6,1639.3,18.00109]
[1744654807242,0.609912,1639.6,1639.3,5.801]
[1744654807243,6.709062,1639.6,1639.3,5.801]
[1744654807451,6.09915,1639.6,1639.3,5.801]
[1744654807850,6.09909,1639.6,1639.3,18.00102]
[1744654808054,8.182593,1639.8,1639.5,6.09924]
[1744654808260,6.09879,1639.7,1639.3,11.9011]
[1744654808456,6.09908,1639.6,1639.3,11.9011]
[1744654808791,6.09908,1639.6,1639.3,5.801]
[1744654808964,6.09979,1639.4,1639.3,5.801]
[1744654810747,12.97389,1639.5,1639.3,5.801]
[1744654810935,13.01429,1639.5,1639.0,6.5823]
[1744654811878,6.10065,1639.2,1639.0,6.5823]
[1744654812049,13.01429,1639.5,1639.0,12.68336]
[1744654812050,6.09983,1639.4,1639.0,12.68336]
[1744654812238,6.10016,1639.3,1639.0,12.68336]
[1744654812437,12.20068,1639.3,1639.0,6.5823]
[1744654812639,6.1009,1639.1,1639.0,5.801]
[1744654812987,6.1009,1639.1,1639.0,9.801]
[1744654813345,8.114048,1639.1,1639.0,9.801]
[1744654813709,0.7542,1639.4,1639.0,9.801]
[1744654813880,12.20076,1639.3,1639.0,9.801]
[1744654814040,6.1007,1639.2,1639.0,9.801]
[1744654814640,0.7542,1639.4,1639.0,9.801]
[1744654814979,13.05526,1639.9,1639.5,6.09911]
[1744654815145,6.09893,1639.7,1639.4,5.801]
[1744654815347,6.09942,1639.5,1639.4,5.801]
[1744654815836,6.09878,1639.7,1639.4,5.801]
[1744654816043,12.19774,1639.7,1639.4,5.801]
[1744654817417,6.09911,1639.6,1639.4,5.801]
[1744654818293,6.09884,1639.7,1639.4,5.801]
[1744654818623,6.9572,1639.9,1639.6,6.09872]
[1744654818624,6.09794,1639.9,1639.6,6.09872]
[1744654818915,12.2376,1640.0,1639.6,12.19762]
[1744654819067,12.23695,1640.2,1639.8,6.09807]
[1744654819266,20.246509,1640.2,1639.8,12.70537]
[1744654819468,14.149329,1640.2,1639.8,18.80351]
[1744654819669,6.88684,1640.3,1639.9,6.15866836]
[1744654819975,6.09654,1640.3,1639.9,6.09769]
[1744654820415,12.23612,1640.4,1640.1,6.0971]
[1744654820416,6.14,1640.4,1640.1,6.0971]
[1744654820571,6.14,1640.4,1640.1,12.9596]
[1744654820767,6.14,1640.4,1640.1,12.95954]
[1744654820991,6.14,1640.4,1640.1,6.86244]
[1744654821185,6.9303,1640.6,1640.2,6.09659]
[1744654821408,13.02577,1640.6,1640.2,6.09659]
[1744654821615,6.0958,1640.5,1640.2,11.89659]
[1744654821811,13.02577,1640.6,1640.2,17.99329]
[1744654822014,19.12257,1640.8,1640.4,6.86124]
[1744654822222,14.0238513,1640.8,1640.4,0.7654]
[1744654822519,12.19106,1640.6,1640.4,0.7654]
[1744654822819,12.19113,1640.6,1640.4,0.7654]
[1744654823029,6.09495,1640.7,1640.2,6.5634]
[1744654823209,6.09624,1640.4,1640.2,6.5634]
[1744654823795,12.19258,1640.4,1640.2,6.5634]
[1744654824085,6.09624,1640.4,1640.2,6.5634]
[1744654824419,6.09624,1640.4,1640.2,5.8]
[1744654824590,6.09623,1640.4,1640.2,5.8]
[1744654825182,6.09608,1640.4,1640.2,5.8]
[1744654825382,0.7991,1640.5,1640.2,5.8]
[1744654825383,12.99077,1640.5,1640.2,5.8]
[1744654825602,12.99077,1640.5,1640.2,11.89678]
[1744654825803,6.89489,1640.5,1640.2,11.89678]
[1744654826131,6.91565,1640.7,1640.4,6.09594]
[1744654826434,6.09505,1640.7,1640.4,6.09594]
[1744654826630,6.09505,1640.7,1640.3,6.87978]
[1744654826631,6.09471,1640.8,1640.3,0.7834]
[1744654826811,6.09471,1640.8,1640.4,6.09607]
[1744654826812,12.18946,1640.8,1640.4,6.09607]
[1744654827178,6.09501,1640.7,1640.4,6.09607]
[1744654827380,12.19016,1640.7,1640.4,6.09607]
[1744654827591,6.09501,1640.7,1640.4,6.09607]
[1744654827794,6.09567,1640.6,1640.3,6.8798]
[1744654828126,12.19117,1640.6,1640.3,6.8798]
[1744654828278,6.0955,1640.6,1640.3,6.8797]
[1744654828484,6.09499,1640.7,1640.4,12.19176]
[1744654828821,6.0946,1640.8,1640.4,6.0958]
[1744654828992,6.09506,1640.7,1640.4,6.0958]
[1744654829307,6.09506,1640.7,1640.4,6.09604]
[1744654829479,6.09506,1640.7,1640.3,12.97605]
[1744654829684,6.09536,1640.6,1640.3,12.97604]
[1744654830183,12.19018,1640.7,1640.4,6.09606]
[1744654831009,0.8206,1640.9,1640.6,6.09516]
[1744654831214,1.51666,1640.9,1640.5,6.09566]
[1744654831390,6.09483,1640.8,1640.5,6.09566]
[1744654831912,12.18956,1640.8,1640.5,6.09566]
[1744654832511,6.09475,1640.8,1640.5,12.19126]
[1744654832717,6.14,1641.0,1640.6,0.8328]
[1744654833010,6.09471,1640.8,1640.6,0.8328]
[1744654833184,12.18861,1640.9,1640.6,0.8328]
[1744654833380,6.09426,1640.9,1640.6,6.92801]
[1744654833582,6.09426,1640.9,1640.6,12.72601]
[1744654833785,12.18862,1640.9,1640.6,12.72601]
[1744654834216,6.09426,1640.9,1640.6,12.72601]
[1744654834383,18.32815,1641.0,1640.6,18.82123]
[1744654834585,12.23395,1641.0,1640.7,6.09488]
[1744654835114,6.14,1641.0,1640.7,1.882093]
[1744654835278,6.0931,1641.2,1640.9,13.01822]
[1744654835710,6.0928,1641.3,1641.0,6.09377]
[1744654836028,12.18583,1641.3,1641.0,5.797]
[1744654836230,6.0932,1641.2,1641.0,5.797]
[1744654838995,0.05,1641.4,1641.0,11.89072]
[1744654838996,6.14243,1641.4,1641.0,11.89072]
[1744654839181,6.09276,1641.3,1641.0,11.89072]
[1744654839384,6.09276,1641.3,1641.0,19.865897]
[1744654839580,0.05,1641.4,1641.0,7.678467]
[1744654839784,0.05,1641.4,1641.1,6.15416892]
[1744654840286,12.23506,1641.4,1641.1,6.09324]
[1744654840480,6.1424,1641.4,1641.1,6.09324]
[1744654840991,12.23503,1641.4,1641.1,6.09324]
[1744654841197,6.09273,1641.3,1641.0,19.865887]
[1744654841521,6.1424,1641.4,1641.1,14.1734887]
[1744654841815,6.1424,1641.4,1641.1,8.0800387]
[1744654842021,12.23507,1641.4,1641.1,8.0800387]
[1744654842519,6.1424,1641.4,1641.1,8.0799387]
[1744654842722,0.05,1641.4,1641.1,8.0799387]
[1744654842919,0.05,1641.4,1641.2,7.72716387]
[1744654844096,0.05,1641.4,1641.3,6.09273]
[1744654845812,0.05,1641.4,1641.2,13.82003387]
[1744654846011,0.05,1641.4,1641.3,6.09273]
[1744654846809,0.05,1641.4,1641.2,13.82009387]
[1744654847005,6.09294,1641.3,1641.0,12.69509]
[1744654847212,6.09292,1641.3,1641.0,12.69501]
[1744654847606,12.18581,1641.3,1641.0,12.69501]
[1744654847794,12.23493,1641.4,1641.1,4.0]
[1744654848000,6.14243,1641.4,1641.1,6.09331]
[1744654848199,6.14243,1641.4,1641.1,7.362771]
[1744654848414,6.14243,1641.4,1641.1,1.269461]
[1744654848607,0.05,1641.4,1641.1,7.362761]
[1744654848815,0.05,1641.4,1641.2,6.093]
[1744654850216,6.14237,1641.4,1641.1,7.362801]
[1744654850421,6.14237,1641.4,1641.1,13.456161]
[1744654851303,0.05,1641.4,1641.2,6.09297]
[1744654852206,0.05,1641.4,1641.3,6.92023]
[1744654853198,0.05,1641.4,1641.3,9.92023]
[1744654853796,0.05,1641.4,1641.3,13.92023]
[1744654854123,12.08213,1641.8,1641.4,6.09211]
[1744654854423,12.18275,1641.7,1641.5,5.766]
[1744654854596,6.09125,1641.7,1641.5,6.951811]
[1744654854991,6.14,1642.0,1641.5,10.951811]
[1744654855221,6.09139,1641.7,1641.5,10.951811]
[1744654856431,6.09139,1641.7,1641.5,6.951811]
[1744654856637,6.89438,1641.8,1641.5,6.951811]
[1744654856932,6.09057,1641.9,1641.5,6.951811]
[1744654856933,6.09057,1641.9,1641.6,6.7866911]
[1744654857100,6.09057,1641.9,1641.6,0.6951811]
[1744654857303,6.09089,1641.8,1641.6,0.6951811]
[1744654857515,6.09089,1641.8,1641.6,4.6951811]
[1744654857720,12.18128,1641.9,1641.6,4.6951811]
[1744654858440,6.88798,1642.2,1641.8,6.86377]
[1744654858635,6.08914,1642.3,1641.9,11.85631]
[1744654859036,6.9961,1642.4,1641.9,5.766]
[1744654859237,12.17987,1642.1,1641.9,5.766]
[1744654859437,6.09066,1641.9,1641.6,4.7732]
[1744654859641,0.8061,1642.1,1641.6,4.7732]
[1744654859642,12.18043,1642.0,1641.6,10.86479]
[1744654860139,6.19,1642.4,1641.8,0.7877]
[1744654860438,6.89233,1642.0,1641.8,4.0]
[1744654860638,6.0905,1641.9,1641.8,4.0]
[1744654861008,7.87698558,1642.0,1641.6,11.85641]
[1744654861240,6.09061,1641.9,1641.6,5.765]
[1744654861738,6.8924,1642.0,1641.6,5.765]
[1744654861739,6.09111,1641.8,1641.6,5.765]
[1744654862139,3.8022,1642.0,1641.6,5.765]
[1744654862140,6.89124,1641.7,1641.6,5.765]
[1744654862342,12.18386,1641.6,1641.2,13.2036081]
[1744654862641,12.18386,1641.6,1641.3,4.0]
[1744654862842,6.09182,1641.6,1641.3,5.72036081]
[1744654863008,6.14,1641.8,1641.6,6.09147]
[1744654863211,0.8,1642.1,1641.6,5.765]
[1744654863409,0.8,1642.1,1641.8,6.09077]
[1744654863609,6.08943,1642.2,1641.9,6.0905]
[1744654864028,6.08943,1642.2,1641.8,6.09072]
[1744654864231,12.17899,1642.2,1641.9,0.609072]
[1744654864410,12.94517,1642.3,1641.9,12.464562]
[1744654865632,6.856,1642.3,1641.9,12.464412]
[1744654865832,0.7669,1642.3,1642.1,6.08974]
[1744654866013,0.7669,1642.3,1642.0,6.09001]
[1744654866213,6.85592,1642.3,1642.0,1.2464082]
[1744654866512,12.94525,1642.3,1642.0,1.2464082]
[1744654866812,12.94513,1642.3,1642.0,1.2464082]
[1744654867240,6.08944,1642.2,1642.0,1.2464082]
[1744654867426,6.08944,1642.2,1641.9,6.374072]
[1744654867609,6.08944,1642.2,1641.9,12.464532]
[1744654867814,6.85592,1642.3,1641.9,18.554882]
[1744654868242,6.85592,1642.3,1641.9,12.464422]
[1744654868636,6.85592,1642.3,1641.9,18.554802]
[1744654868837,6.85592,1642.3,1641.9,12.464422]
[1744654869144,0.7669,1642.3,1642.1,6.08961]
[1744654869349,0.05,1642.4,1642.2,6.08927]
[1744654869551,0.05,1642.4,1642.3,6.08902]
[1744654869754,0.05,1642.4,1642.1,0.8258]
[1744654870049,6.08908,1642.3,1642.0,7.3364822]
[1744654870343,6.08908,1642.3,1642.0,1.2464422]
[1744654870546,6.08944,1642.2,1642.0,1.2464422]
[1744654870716,12.17916,1642.2,1641.9,7.132972]
[1744654870917,12.17906,1642.2,1641.9,7.132972]
[1744654871117,12.17827,1642.3,1641.9,13.223352]
[1744654871354,6.0891,1642.3,1641.9,13.223352]
[1744654871651,6.89833,1642.4,1642.0,7.4121352]
[1744654871854,6.89833,1642.4,1642.1,6.08974]
[1744654872029,12.98717,1642.4,1642.1,6.08974]